fUSD/lending_fUSD_20241101
["ID","MTS","AMOUNT","RATE_DAILY","PERIOD"]
[341138715,1730465438947,-3190.83730808,0.00040898,5]
[341138716,1730465438956,-150.0,0.00040898,2]
[341138717,1730465438974,-150.0,0.000409,2]
[341138718,1730465438984,-1800.0,0.000409,14]
[341138719,1730465438993,-478.0,0.000409,30]
[341138720,1730465439003,-150.0,0.00040904,2]
[341138721,1730465439013,-150.0,0.00040911,2]
[341138722,1730465439022,-150.0,0.00040914,2]
[341138723,1730465439032,-150.0,0.00040919,2]
[341138724,1730465439042,-150.0,0.00040923,2]
[341138725,1730465439052,-150.0,0.0004093,2]
[341138726,1730465439062,-150.0,0.00040933,2]
[341138727,1730465439072,-150.0,0.00040935,2]
[341138728,1730465439081,-150.0,0.00040937,2]
[341138729,1730465439091,-150.0,0.00040942,2]
[341138730,1730465439101,-150.0,0.00040942,2]
[341138731,1730465439110,-150.0,0.00040946,2]
[341138732,1730465439120,-157.017634,0.00040947,14]
[341138733,1730465439129,-157.017634,0.00040947,14]
[341138734,1730465439139,-151.0,0.00040947,14]
[341138735,1730465439148,-150.0,0.00040947,2]
[341138736,1730465439157,-150.0,0.00040953,2]
[341138737,1730465439167,-150.0,0.00040966,2]
[341138738,1730465439176,-150.0,0.00040972,2]
[341138739,1730465439185,-1500.0,0.00040973,2]
[341138740,1730465439195,-150.0,0.0004098,2]
[341138741,1730465439204,-150.0,0.00040982,2]
[341138742,1730465439215,-150.0,0.00040983,2]
[341138743,1730465439224,-150.0,0.00040983,2]
[341138744,1730465439234,-150.0,0.00040984,2]
[341138745,1730465439243,-150.0,0.00040985,2]
[341138746,1730465439253,-150.0,0.00040991,2]
[341138747,1730465439263,-150.0,0.00040991,2]
[341138748,1730465439272,-457.0,0.00040995,5]
[341138749,1730465439282,-150.0,0.00040995,2]
[341138750,1730465439291,-637.56111048,0.00040997,2]
[341138751,1730465439301,-2000.0,0.00040998,7]
[341138752,1730465439310,-200.0,0.00040998,7]
[341138753,1730465439320,-200.0,0.00041,30]
[341138754,1730465439330,-150.0,0.00041,45]
[341138755,1730465439339,-150.0,0.00041016,2]
[341138756,1730465439349,-150.0,0.00041018,2]
[341138757,1730465439360,-150.0,0.00041027,2]
[341138758,1730465439370,-150.0,0.00041037,2]
[341138759,1730465439380,-153.1,0.00041039,2]
[341138760,1730465439390,-248.7,0.00041039,2]
[341138761,1730465439400,-150.0,0.00041039,2]
[341138762,1730465439410,-150.0,0.00041046,2]
[341138763,1730465439419,-150.0,0.00041059,2]
[341138764,1730465439430,-150.0,0.00041066,2]
[341138765,1730465439439,-164.21315472,0.0004107,2]
[341138766,1730465439449,-150.0,0.0004107,2]
[341138767,1730465439458,-500.0,0.00041073,5]
[341138768,1730465439477,-500.0,0.00041073,2]
[341138769,1730465439487,-150.0,0.00041073,2]
[341138770,1730465439496,-150.0,0.00041079,2]
[341138771,1730465439505,-152.0,0.00041084,3]
[341138772,1730465439516,-576.95,0.00041085,2]
[341138773,1730465439526,-153.15,0.00041085,2]
[341138774,1730465439536,-205.63279947,0.00041085,2]
[341138775,1730465439546,-150.0,0.0004109,2]
[341138776,1730465439555,-307.32591049,0.00041094,10]
[341138777,1730465439564,-343.05484251,0.00041095,3]
[341138778,1730465439574,-534.77130645,0.00041095,3]
[341138779,1730465439584,-523.32356563,0.00041095,3]
[341138780,1730465439593,-523.80819508,0.00041095,3]
[341138781,1730465439602,-174.56842566,0.00041095,3]
[341138782,1730465439611,-500.0,0.00041095,3]
[341138783,1730465439620,-500.0,0.00041095,3]
[341138784,1730465439630,-632.03802607,0.00041095,2]
[341138785,1730465439640,-500.0,0.00041095,3]
[341138786,1730465439650,-500.0,0.00041095,3]
[341138787,1730465439660,-154.12277279,0.00041095,2]
[341138788,1730465439669,-500.0,0.00041095,2]
[341138789,1730465439679,-522.84319844,0.00041095,3]
[341138790,1730465439689,-500.0,0.00041095,3]
[341138791,1730465439699,-500.0,0.00041095,3]
[341138792,1730465439709,-500.0,0.00041095,3]
[341138793,1730465439720,-507.06625119,0.00041095,3]
[341138794,1730465439730,-500.0,0.00041095,3]
[341138795,1730465439740,-502.91536559,0.00041095,3]
[341138796,1730465439750,-508.95727014,0.00041095,3]
[341138797,1730465439759,-500.29720017,0.00041095,3]
[341138798,1730465439768,-500.0,0.00041095,3]
[341138799,1730465439777,-505.74830075,0.00041095,3]
[341138800,1730465439786,-505.12512294,0.00041095,3]
[341138801,1730465439795,-512.20818953,0.00041095,3]
[341138802,1730465439806,-502.97590224,0.00041095,3]
[341138803,1730465439816,-524.70757852,0.00041095,3]
[341138804,1730465439828,-767.55,0.00041095,3]
[341138805,1730465439837,-522.81303177,0.00041095,3]
[341138806,1730465439846,-500.0,0.00041095,3]
[341138807,1730465439855,-500.0,0.00041095,3]
[341138808,1730465439865,-500.0,0.00041095,3]
[341138809,1730465439875,-231.14030069,0.00041095,3]
[341138810,1730465439884,-541.03083845,0.00041095,3]
[341138811,1730465439894,-513.19496194,0.00041095,3]
[341138812,1730465439905,-513.3795113,0.00041095,3]
[341138813,1730465439916,-511.07115417,0.00041095,3]
[341138814,1730465439926,-538.11311104,0.00041095,3]
[341138815,1730465439936,-1031.98298069,0.00041095,10]
[341138816,1730465439945,-500.0,0.00041095,3]
[341138817,1730465439954,-512.91526975,0.00041095,3]
[341138818,1730465439967,-546.52566071,0.00041095,3]
[341138819,1730465439977,-511.43241971,0.00041095,3]
[341138820,1730465439987,-474.03424708,0.00041095,3]
[341138821,1730465439997,-503.48457066,0.00041095,3]
[341138822,1730465440006,-500.0,0.00041095,3]
[341138823,1730465440017,-500.0,0.00041095,3]
[341138824,1730465440027,-514.49350586,0.00041095,3]
[341138825,1730465440036,-531.61752381,0.00041095,3]
[341138826,1730465440045,-504.85805987,0.00041095,3]
[341138827,1730465440054,-504.2112071,0.00041095,3]
[341138828,1730465440064,-509.87155923,0.00041095,3]
[341138836,1730465440184,-500.0,0.00041095,3]
[341138837,1730465440194,-500.0,0.00041095,3]
[341138838,1730465440204,-503.74148465,0.00041095,3]
[341138839,1730465440219,-513.61609164,0.00041095,3]
[341138840,1730465440230,-500.0,0.00041095,3]
[341138841,1730465440239,-330.75242125,0.00041095,3]
[341138842,1730465440249,-500.0,0.00041095,3]
[341138843,1730465440259,-531.14009876,0.00041095,3]
[341138844,1730465440268,-517.01784632,0.00041095,3]
[341138845,1730465440278,-530.3097226,0.00041095,3]
[341138846,1730465440287,-1004.50321836,0.00041095,3]
[341138847,1730465440297,-449.80504826,0.00041095,3]
[341138848,1730465440591,-50.19495174,0.00041095,3]
[341138849,1730465440600,-580.37669997,0.00041095,3]
[341138850,1730465440609,-519.40637779,0.00041095,3]
[341138851,1730465440618,-233.187446,0.00041095,3]
[341138852,1730465440628,-237.3724647,0.00041095,3]
[341138853,1730465440637,-509.75881118,0.00041095,3]
[341138854,1730465440647,-167.708544,0.00041095,3]
[341138855,1730465440658,-339.85573173,0.00041095,3]
[341138856,1730465440668,-519.4060588,0.00041095,3]
[341138857,1730465440677,-314.97148698,0.00041095,3]
[341138858,1730465440686,-553.34863084,0.00041095,3]
[341138859,1730465440695,-500.0,0.00041095,3]
[341138860,1730465440704,-500.0,0.00041095,3]
[341138861,1730465440718,-500.0,0.00041095,3]
[341138862,1730465440727,-513.25962721,0.00041095,3]
[341138863,1730465440737,-545.08227637,0.00041095,3]
[341138864,1730465440747,-500.0,0.00041095,3]
[341138865,1730465440757,-500.0,0.00041095,3]
[341138866,1730465440767,-509.34563338,0.00041095,3]
[341138867,1730465440777,-500.0,0.00041095,3]
[341138868,1730465440787,-517.34473933,0.00041095,3]
[341138869,1730465440797,-500.0,0.00041095,3]
[341138870,1730465440806,-500.0,0.00041095,3]
[341138871,1730465440817,-503.96400884,0.00041095,3]
[341138873,1730465440829,-528.00686167,0.00041095,3]
[341138874,1730465440838,-527.70606387,0.00041095,3]
[341138875,1730465440847,-637.42540663,0.00041095,3]
[341138876,1730465440856,-507.11769725,0.00041095,3]
[341138877,1730465440866,-500.0,0.00041095,3]
[341138878,1730465440876,-500.0,0.00041095,3]
[341138879,1730465440886,-500.0,0.00041095,3]
[341138880,1730465440896,-518.82134102,0.00041095,3]
[341138881,1730465440906,-520.90537415,0.00041095,3]
[341138882,1730465440915,-501.33022825,0.00041095,3]
[341138883,1730465440925,-500.0,0.00041095,3]
[341138884,1730465440934,-500.0,0.00041095,3]
[341138885,1730465440943,-541.24300525,0.00041095,3]
[341138886,1730465440953,-500.0,0.00041095,3]
[341138887,1730465440964,-500.0,0.00041095,3]
[341138888,1730465440975,-496.39526494,0.00041095,3]
[341138889,1730465440984,-504.68028113,0.00041095,3]
[341138890,1730465440993,-500.0,0.00041095,3]
[341138891,1730465441003,-566.75435149,0.00041095,3]
[341138892,1730465441012,-500.0,0.00041095,3]
[341138893,1730465441022,-500.0,0.00041095,3]
[341138894,1730465441031,-505.48897695,0.00041095,3]
[341138895,1730465441041,-577.9111099,0.00041095,3]
[341138896,1730465441050,-507.23212221,0.00041095,3]
[341138897,1730465441059,-504.14761368,0.00041095,3]
[341138898,1730465441069,-500.0,0.00041095,3]
[341138899,1730465441078,-506.98461778,0.00041095,3]
[341138900,1730465441088,-500.0,0.00041095,7]
[341138901,1730465441098,-500.0,0.00041095,3]
[341138902,1730465441107,-500.0,0.00041095,3]
[341138903,1730465441117,-506.60661462,0.00041095,3]
[341138904,1730465441128,-500.0,0.00041095,3]
[341138905,1730465441137,-500.0,0.00041095,3]
[341138906,1730465441147,-500.0,0.00041095,3]
[341138907,1730465441156,-155.97456206,0.00041095,3]
[341138908,1730465441166,-500.0,0.00041095,3]
[341138909,1730465441176,-500.0,0.00041095,3]
[341138910,1730465441186,-500.0,0.00041095,3]
[341138911,1730465441196,-500.0,0.00041095,3]
[341138912,1730465441206,-500.0,0.00041095,3]
[341138913,1730465441220,-629.73,0.00041095,3]
[341138914,1730465441229,-500.0,0.00041095,3]
[341138915,1730465441239,-514.27739116,0.00041095,3]
[341138916,1730465441249,-625.46807859,0.00041095,3]
[341138917,1730465441258,-500.0,0.00041095,3]
[341138918,1730465441267,-500.0,0.00041095,3]
[341138919,1730465441277,-500.0,0.00041095,3]
[341138920,1730465441286,-157.017634,0.00041095,14]
[341138921,1730465441296,-157.017634,0.00041095,14]
[341138922,1730465441305,-157.017634,0.00041095,14]
[341138923,1730465441314,-157.017634,0.00041095,14]
[341138924,1730465441324,-157.017634,0.00041095,14]
[341138925,1730465441333,-157.017634,0.00041095,14]
[341138926,1730465441344,-500.0,0.00041095,3]
[341138927,1730465441353,-157.017634,0.00041095,14]
[341138928,1730465441363,-157.017634,0.00041095,14]
[341138929,1730465441372,-157.017634,0.00041095,14]
[341138930,1730465441382,-157.017634,0.00041095,14]
[341138931,1730465441393,-500.0,0.00041095,3]
[341138932,1730465441404,-151.0,0.00041095,14]
[341138933,1730465441413,-151.0,0.00041095,14]
[341138934,1730465441423,-151.0,0.00041095,14]
[341138935,1730465441433,-526.13266898,0.00041095,3]
[341138936,1730465441442,-500.0,0.00041095,3]
[341138937,1730465441452,-584.23,0.00041095,3]
[341138938,1730465441462,-500.0,0.00041095,3]
[341138939,1730465441474,-500.0,0.00041095,3]
[341138940,1730465441484,-500.0,0.00041095,3]
[341138941,1730465441493,-500.0,0.00041095,3]
[341138942,1730465441502,-215.14,0.00041095,3]
[341138943,1730465441511,-500.0,0.00041095,3]
[341138944,1730465441521,-500.0,0.00041095,3]
[341138945,1730465441530,-500.0,0.00041095,3]
[341138946,1730465441539,-500.0,0.00041095,3]
[341138947,1730465441548,-500.0,0.00041095,3]
[341138948,1730465441558,-578.91277515,0.00041095,3]
[341138949,1730465441567,-500.0,0.00041095,3]
[341138950,1730465441577,-500.0,0.00041095,3]
[341138951,1730465441586,-500.0,0.00041095,3]
[341138952,1730465441596,-500.0,0.00041095,3]
[341138953,1730465441605,-500.0,0.00041095,3]
[341138954,1730465441615,-500.0,0.00041095,3]
[341138955,1730465441624,-500.84299427,0.00041095,3]
[341138956,1730465441633,-500.0,0.00041095,3]
[341138957,1730465441642,-500.0,0.00041095,3]
[341138958,1730465441652,-570.11,0.00041095,3]
[341138959,1730465441661,-531.52,0.00041095,3]
[341138960,1730465441670,-759.91,0.00041095,3]
[341138961,1730465441680,-500.0,0.00041095,3]
[341138962,1730465441690,-500.0,0.00041095,3]
[341138963,1730465441699,-300.0,0.00041095,3]
[341138964,1730465441708,-500.0,0.00041095,3]
[341138965,1730465441720,-682.18,0.00041095,3]
[341138966,1730465441730,-548.24,0.00041095,3]
[341138967,1730465441740,-500.0,0.00041095,3]
[341138968,1730465441749,-500.0,0.00041095,3]
[341138969,1730465441758,-374.32044976,0.00041095,3]
[341138970,1730465441768,-225.63009559,0.00041095,3]
[341138971,1730465441778,-1337.19,0.00041095,3]
[341138972,1730465441787,-500.0,0.00041095,3]
[341138973,1730465441797,-167.407579,0.00041095,7]
[341138974,1730465441807,-500.0,0.00041095,3]
[341138975,1730465441818,-500.0,0.00041095,3]
[341138976,1730465441829,-529.05917689,0.00041095,3]
[341138977,1730465441838,-500.0,0.00041095,3]
[341138978,1730465441847,-531.94995005,0.00041095,3]
[341138979,1730465441857,-500.0,0.00041095,3]
[341138980,1730465441867,-178.755886,0.00041095,14]
[341138981,1730465441876,-178.755886,0.00041095,14]
[341138982,1730465441885,-500.0,0.00041095,3]
[341138983,1730465441896,-178.755886,0.00041095,14]
[341138984,1730465441905,-178.755886,0.00041095,14]
[341138985,1730465441915,-178.755886,0.00041095,14]
[341138986,1730465441924,-178.755877,0.00041095,14]
[341138987,1730465441933,-500.0,0.00041095,3]
[341138988,1730465441942,-500.0,0.00041095,3]
[341138989,1730465441951,-500.0,0.00041095,3]
[341138990,1730465441960,-500.0,0.00041095,3]
[341138991,1730465441973,-500.0,0.00041095,3]
[341138992,1730465441983,-500.0,0.00041095,3]
[341138993,1730465441992,-500.0,0.00041095,3]
[341138994,1730465442002,-560.83,0.00041095,3]
[341138995,1730465442011,-500.0,0.00041095,3]
[341138996,1730465442020,-500.0,0.00041095,3]
[341138997,1730465442030,-500.0,0.00041095,3]
[341138998,1730465442039,-500.0,0.00041095,3]
[341138999,1730465442048,-500.0,0.00041095,3]
[341139000,1730465442058,-200.0,0.00041095,3]
[341139001,1730465442067,-500.0,0.00041095,3]
[341139002,1730465442076,-500.0,0.00041095,3]
[341139003,1730465442086,-770.26,0.00041095,3]
[341139004,1730465442095,-790.31,0.00041095,3]
[341139005,1730465442105,-500.0,0.00041095,3]
[341139006,1730465442114,-1380.79,0.00041095,3]
[341139007,1730465442123,-500.0,0.00041095,3]
[341139008,1730465442132,-886.76,0.00041095,3]
[341139009,1730465442142,-500.0,0.00041095,3]
[341139010,1730465442151,-500.0,0.00041095,3]
[341139011,1730465442160,-500.0,0.00041095,3]
[341139012,1730465442169,-500.0,0.00041095,3]
[341139013,1730465442179,-437.48413208,0.00041095,3]
[341139014,1730465442188,-500.0,0.00041095,3]
[341139015,1730465442197,-500.0,0.00041095,3]
[341139016,1730465442206,-500.0,0.00041095,3]
[341139017,1730465442216,-500.0,0.00041095,3]
[341139018,1730465442225,-500.0,0.00041095,3]
[341139019,1730465442234,-594.02,0.00041095,3]
[341139020,1730465442243,-500.0,0.00041095,3]
[341139021,1730465442252,-1089.18,0.00041095,3]
[341139022,1730465442261,-1176.04,0.00041095,3]
[341139023,1730465442271,-1176.04,0.00041095,3]
[341139024,1730465442280,-500.0,0.00041095,3]
[341139025,1730465442289,-500.0,0.00041095,3]
[341139026,1730465442298,-500.0,0.00041095,3]
[341139027,1730465442307,-500.0,0.00041095,3]
[341139028,1730465442316,-737.21,0.00041095,3]
[341139029,1730465442325,-500.0,0.00041095,3]
[341139030,1730465442335,-500.0,0.00041095,3]
[341139031,1730465442344,-500.0,0.00041095,3]
[341139032,1730465442353,-500.0,0.00041095,3]
[341139033,1730465442362,-924.37,0.00041095,3]
[341139034,1730465442372,-500.0,0.00041095,3]
[341139035,1730465442464,-517.69,0.00041095,3]
[341139036,1730465442481,-528.39,0.00041095,3]
[341139037,1730465442490,-500.0,0.00041095,3]
[341139038,1730465442499,-387.234521,0.00041095,14]
[341139039,1730465442508,-387.234521,0.00041095,14]
[341139040,1730465442517,-3060.45,0.00041095,3]
[341139041,1730465442527,-387.234521,0.00041095,14]
[341139042,1730465442535,-387.234521,0.00041095,14]
[341139043,1730465442544,-585.97,0.00041095,3]
[341139044,1730465442553,-387.234521,0.00041095,14]
[341139045,1730465442563,-387.234521,0.00041095,14]
[341139046,1730465442572,-387.234521,0.00041095,14]
[341139047,1730465442581,-387.234521,0.00041095,14]
[341139048,1730465442590,-387.234521,0.00041095,14]
[341139049,1730465442599,-387.234521,0.00041095,14]
[341139050,1730465442608,-500.0,0.00041095,3]
[341139051,1730465442618,-938.43,0.00041095,3]
[341139052,1730465442627,-215.84915241,0.00041095,3]
[341139053,1730465442635,-1794.15,0.00041095,3]
[341139054,1730465442645,-151.0,0.00041095,14]
[341139055,1730465442654,-151.0,0.00041095,14]
[341139056,1730465442663,-151.0,0.00041095,14]
[341139057,1730465442672,-151.0,0.00041095,14]
[341139058,1730465442682,-509.72,0.00041095,3]
[341139059,1730465442691,-151.0,0.00041095,14]
[341139060,1730465442700,-151.0,0.00041095,14]
[341139061,1730465442709,-190.560107,0.00041095,14]
[341139062,1730465442721,-500.0,0.00041095,3]
[341139063,1730465442730,-586.39253436,0.00041095,3]
[341139064,1730465442739,-1720.34,0.00041095,3]
[341139065,1730465442748,-500.0,0.00041095,3]
[341139066,1730465442758,-500.0,0.00041095,3]
[341139067,1730465442767,-797.31,0.00041095,3]
[341139068,1730465442777,-2484.72,0.00041095,3]
[341139069,1730465442786,-1047.46,0.00041095,3]
[341139070,1730465442795,-500.0,0.00041095,3]
[341139071,1730465442804,-500.0,0.00041095,3]
[341139072,1730465442817,-500.0,0.00041095,3]
[341139073,1730465442826,-500.0,0.00041095,120]
[341139074,1730465442835,-500.0,0.00041095,3]
[341139075,1730465442844,-587.3,0.00041095,3]
[341139076,1730465442853,-533.14,0.00041095,3]
[341139077,1730465442865,-500.0,0.00041095,3]
[341139078,1730465442874,-500.0,0.00041095,3]
[341139079,1730465442884,-500.0,0.00041095,3]
[341139080,1730465442895,-500.0,0.00041095,3]
[341139081,1730465442908,-159.98970082,0.00041095,3]
[341139082,1730465442919,-712.61,0.00041095,3]
[341139083,1730465442928,-1427.19,0.00041095,3]
[341139084,1730465442937,-500.0,0.00041095,3]
[341139085,1730465442947,-1152.8,0.00041095,3]
[341139086,1730465442955,-562.53,0.00041095,3]
[341139087,1730465442966,-296.94019268,0.00041095,3]
[341139088,1730465442975,-500.0,0.00041095,3]
[341139089,1730465442985,-500.0,0.00041095,3]
[341139090,1730465442994,-500.0,0.00041095,3]
[341139092,1730465443003,-500.0,0.00041095,30]
[341139093,1730465443012,-500.0,0.00041095,3]
[341139094,1730465443021,-500.0,0.00041095,3]
[341139096,1730465443030,-1573.37,0.00041095,3]
[341139098,1730465443039,-532.69,0.00041095,3]
[341139099,1730465443048,-500.0,0.00041095,3]
[341139100,1730465443057,-916.74,0.00041095,3]
[341139101,1730465443067,-500.0,0.00041095,3]
[341139102,1730465443077,-1140.72,0.00041095,3]
[341139104,1730465443086,-1268.98,0.00041095,3]
[341139105,1730465443095,-507.83,0.00041095,3]
[341139106,1730465443104,-500.0,0.00041095,3]
[341139107,1730465443114,-1166.19,0.00041095,3]
[341139109,1730465443123,-500.0,0.00041095,3]
[341139110,1730465443133,-500.0,0.00041095,3]
[341139111,1730465443142,-537.19,0.00041095,3]
[341139113,1730465443151,-593.87,0.00041095,3]
[341139114,1730465443162,-730.83,0.00041095,3]
[341139115,1730465443171,-547.20286869,0.00041095,3]
[341139116,1730465443180,-500.0,0.00041095,3]
[341139117,1730465443190,-728.46,0.00041095,3]
[341139119,1730465443199,-500.0,0.00041095,3]
[341139120,1730465443209,-500.0,0.00041095,3]
[341139121,1730465443220,-1272.11,0.00041095,3]
[341139122,1730465443229,-1000.0,0.00041096,13]
[341139123,1730465443239,-753.63792819,0.00041096,13]
[341139124,1730465443276,-246.36207181,0.00041096,13]
[341139125,1730465443285,-918.76980416,0.00041096,13]
[341139126,1730465443380,-81.23019584,0.00041096,13]
[341139127,1730465443389,-1000.0,0.00041096,13]
[341139128,1730465443398,-1000.0,0.00041096,13]
[341139129,1730465443408,-1000.0,0.00041096,13]
[341139130,1730465443417,-440.04830416,0.00041096,13]
[341139131,1730465443428,-545.63640834,0.00041096,13]
[341139132,1730465443439,-14.3152875,0.00041096,13]
[341139133,1730465443448,-1000.0,0.00041096,13]
[341139134,1730465443458,-1000.0,0.00041096,13]
[341139135,1730465443469,-451.4397125,0.00041096,13]
[341139137,1730465443633,-1699.9575,0.00040031,2]
[341139138,1730465443644,-150.0,0.00040761,2]
[341139139,1730465443654,-548.5602875,0.00041096,13]
[341139140,1730465443665,-788.16780817,0.00041096,13]
[341139141,1730465443676,-211.83219183,0.00041096,13]
[341139142,1730465443686,-446.03072263,0.00041096,13]
[341139144,1730465446582,150.0,0.0001994,2]
[341139146,1730466448136,-151.18230943,0.00037895,2]
[341139147,1730466527600,157.07,0.00015342,2]
[341139148,1730466545152,-640.047,0.00035616,2]
[341139155,1730466631451,-38.48769057,0.00037895,2]
[341139156,1730466631462,-514.27,0.00037988,2]
[341139157,1730466631472,-153.0,0.00038348,2]
[341139158,1730466631483,-153.0,0.00038348,2]
[341139159,1730466631493,-183.23,0.00038476,2]
[341139160,1730466631502,-182.62873734,0.000392,2]
[341139161,1730466631516,-40.37126266,0.000392,2]
[341139162,1730466631525,-250.21699135,0.000392,2]
[341139163,1730466631833,-601.57300865,0.000392,2]
[341139164,1730466631842,-39.86041614,0.00039342,2]
[341139169,1730466637427,-735.7956446,0.00039342,2]
[341139175,1730466642604,-520.5826,0.00039342,2]
[341139176,1730466642667,-22603.76133926,0.00039342,2]
[341139177,1730466642676,-26262.3841,0.00039456,7]
[341139178,1730466642689,-1226.89,0.00039556,30]
[341139179,1730466642700,-18938.57494034,0.00039556,7]
[341139180,1730466642712,-353.54472925,0.00039556,7]
[341139182,1730466645583,-501.11189318,0.00039556,7]
[341139183,1730466645691,-703.17,0.00039556,7]
[341139184,1730466693024,250.0,0.00017,2]
[341139186,1730467625133,-184.39,0.00031214,2]
[341139187,1730467625154,-543.31,0.00037435,2]
[341139188,1730467625174,-153.0,0.00038252,2]
[341139189,1730467625195,-153.0,0.00038257,2]
[341139190,1730467625217,-153.0,0.00038257,2]
[341139191,1730467625237,-153.0,0.00038262,2]
[341139192,1730467625257,-153.0,0.00038266,2]
[341139193,1730467625277,-174.7,0.00038399,2]
[341139194,1730467625297,-160.0,0.00038809,2]
[341139195,1730467625318,-472.4035967,0.00038935,2]
[341139197,1730467686304,23854.24053398,0.00015,2]
[341139198,1730467686329,15823.74606602,0.00015,2]
[341139199,1730467748142,-428.53005122,0.000225,2]
[341139200,1730467748164,-2553.74920678,0.00023922,2]
[341139201,1730467753274,-4152.43957291,0.00023922,2]
[341139202,1730467753294,-2196.50809922,0.000299,2]
[341139203,1730467753313,-608.3508527,0.0003,2]
[341139204,1730467753333,-2638.53929528,0.00035,2]
[341139205,1730467753353,-234.0305,0.00035492,2]
[341139206,1730467759270,1618.43,0.00022,2]
[341139207,1730467761792,554.2655,0.00035584,2]
[341139221,1730467835551,-174.7,0.00038266,2]
[341139222,1730467835561,-106.4564033,0.00038935,2]
[341139223,1730467835571,-250.0,0.0003903,2]
[341139224,1730467835580,-23900.0,0.00039059,2]
[341139225,1730467835589,-1086.21852169,0.00039156,2]
[341139226,1730467835598,-2481.4583818,0.0003917,2]
[341139227,1730467835608,-1088.0,0.00039255,4]
[341139228,1730467835617,-4933.20593121,0.00039256,7]
[341139229,1730467835636,-15442.43526879,0.00039256,7]
[341139230,1730467835646,-1086.21852168,0.00039256,2]
[341139231,1730467835655,-632.2,0.00039295,2]
[341139232,1730467835664,-185.64,0.00039323,2]
[341139233,1730467835674,-250.0,0.00039329,120]
[341139234,1730467835685,-194.46,0.00039354,2]
[341139235,1730467835694,-840.0,0.00039373,2]
[341139236,1730467835703,-171.862,0.00039426,54]
[341139237,1730467835713,-276.353,0.00039426,54]
[341139238,1730467835722,-292.11,0.00039656,2]
[341139239,1730467835732,-543.31,0.00039699,2]
[341139241,1730467835741,-3018.14380213,0.00040297,2]
[341139243,1730467835751,-29402.79033379,0.00040602,2]
[341139245,1730467835771,-19847.5513079,0.00040602,2]
[341139259,1730467837608,-4023.95342864,0.00040602,2]
[341139260,1730467837619,-18611.61426459,0.00040603,2]
[341139261,1730467837629,-18611.61426459,0.00040605,2]
[341139262,1730467837640,-226.12934798,0.00040606,2]
[341139263,1730467837649,-53274.29507033,0.00040622,2]
[341139264,1730467837659,-53274.29507033,0.00040632,2]
[341139265,1730467837668,-226.12934798,0.00040633,2]
[341139266,1730467837677,-1685.44829021,0.00040636,2]
[341139267,1730467837686,-18611.61426459,0.0004064,2]
[341139268,1730467837696,-1685.44829021,0.00040656,2]
[341139269,1730467837706,-1685.44829021,0.00040671,2]
[341139270,1730467837715,-2031.5766,0.00040679,2]
[341139271,1730467837725,-314.1275644,0.00040679,2]
[341139272,1730467837735,-226.12934798,0.00040688,2]
[341139273,1730467837744,-53274.29507033,0.00040693,2]
[341139274,1730467837754,-5752.7449,0.00040695,2]
[341139275,1730467837763,-1685.44829021,0.00040697,2]
[341139276,1730467837774,-1685.44829021,0.00040721,2]
[341139277,1730467837783,-314.12756437,0.0004073,2]
[341139278,1730467837793,-53274.29507033,0.00040733,2]
[341139279,1730467837802,-18611.61426459,0.00040747,2]